[Event "Chessable Masters - Torneo preliminare"]
[White "Tabatabaei, M. Amin"]
[Black "Kramnik, Vladimir"]
[WhiteFideId "12521213"]
[BlackFideId "4101588"]
[WhiteElo "2558"]
[BlackElo "2756"]
[Result "1/2-1/2"]
[Round "6"]
[TimeControl "600+2"]
[Date "2023.03.13"]
[WhiteClock "0:00:09"]
[BlackClock "0:00:06"]

1. d4 {[%clk 0:10:01]}  d5 {[%clk 0:10:00]} 2. c4 {[%clk 0:10:00]}  c6 {[%clk 0:10:01]} 3. Nf3 {[%clk 0:09:53]}  Nf6 {[%clk 0:10:01]} 4. e3 {[%clk 0:09:32]}  Bf5 {[%clk 0:10:00]} 5. Nc3 {[%clk 0:09:33]}  e6 {[%clk 0:10:01]} 6. Nh4 {[%clk 0:09:34]}  Be4 {[%clk 0:10:02]} 7. f3 {[%clk 0:09:32]}  Bg6 {[%clk 0:10:03]} 8. Bd2 {[%clk 0:09:34]}  Nbd7 {[%clk 0:09:56]} 9. Qb3 {[%clk 0:09:00]}  dxc4 {[%clk 0:09:56]} 10. Qxc4 {[%clk 0:07:45]}  Ne4 {[%clk 0:09:29]} 11. fxe4 {[%clk 0:06:57]}  Qxh4+ {[%clk 0:09:26]} 12. g3 {[%clk 0:06:59]}  Qd8 {[%clk 0:09:20]} 13. Bg2 {[%clk 0:06:51]}  Be7 {[%clk 0:09:15]} 14. O-O {[%clk 0:06:49]}  O-O {[%clk 0:09:14]} 15. Rf2 {[%clk 0:06:32]}  e5 {[%clk 0:08:56]} 16. Qb3 {[%clk 0:06:11]}  Qb6 {[%clk 0:08:32]} 17. Qc2 {[%clk 0:05:07]}  exd4 {[%clk 0:08:04]} 18. Na4 {[%clk 0:05:02]}  Qd8 {[%clk 0:07:34]} 19. exd4 {[%clk 0:05:01]}  Nf6 {[%clk 0:07:32]} 20. Bc3 {[%clk 0:04:45]}  b5 {[%clk 0:06:42]} 21. Nc5 {[%clk 0:04:46]}  b4 {[%clk 0:06:19]} 22. Bxb4 {[%clk 0:04:47]}  Qxd4 {[%clk 0:06:17]} 23. Ba3 {[%clk 0:02:08]}  Ng4 {[%clk 0:05:56]} 24. Nb3 {[%clk 0:02:09]}  Qxf2+ {[%clk 0:05:44]} 25. Qxf2 {[%clk 0:02:10]}  Nxf2 {[%clk 0:05:44]} 26. Bxe7 {[%clk 0:02:12]}  Rfe8 {[%clk 0:05:43]} 27. Kxf2 {[%clk 0:02:13]}  Rxe7 {[%clk 0:05:43]} 28. Nc5 {[%clk 0:02:15]}  Rb8 {[%clk 0:05:35]} 29. b3 {[%clk 0:02:14]}  Rd8 {[%clk 0:05:13]} 30. Ke3 {[%clk 0:01:38]}  h5 {[%clk 0:05:11]} 31. Rc1 {[%clk 0:01:35]}  Rd6 {[%clk 0:05:09]} 32. a4 {[%clk 0:01:12]}  a5 {[%clk 0:05:00]} 33. Rc4 {[%clk 0:00:57]}  f6 {[%clk 0:04:33]} 34. Bf3 {[%clk 0:00:51]}  Bf7 {[%clk 0:04:17]} 35. Rc2 {[%clk 0:00:52]}  Re5 {[%clk 0:04:07]} 36. h4 {[%clk 0:00:33]}  Rd8 {[%clk 0:03:58]} 37. Nd3 {[%clk 0:00:31]}  Re7 {[%clk 0:03:28]} 38. Rxc6 {[%clk 0:00:28]}  Bxb3 {[%clk 0:03:25]} 39. Nc5 {[%clk 0:00:23]}  Bf7 {[%clk 0:03:13]} 40. Ra6 {[%clk 0:00:24]}  Re5 {[%clk 0:03:04]} 41. Rxa5 {[%clk 0:00:24]}  Rc8 {[%clk 0:02:42]} 42. Kd4 {[%clk 0:00:25]}  Rd8+ {[%clk 0:02:27]} 43. Ke3 {[%clk 0:00:22]}  Rb8 {[%clk 0:02:22]} 44. Be2 {[%clk 0:00:19]}  Bg6 {[%clk 0:02:06]} 45. Bc4+ {[%clk 0:00:16]}  Kh7 {[%clk 0:01:56]} 46. Bd5 {[%clk 0:00:18]}  Rd8 {[%clk 0:01:53]} 47. Kd4 {[%clk 0:00:19]}  Bf7 {[%clk 0:01:39]} 48. Nd3 {[%clk 0:00:17]}  Re7 {[%clk 0:01:30]} 49. Nb4 {[%clk 0:00:18]}  Rc7 {[%clk 0:01:26]} 50. Rc5 {[%clk 0:00:17]}  Rb7 {[%clk 0:01:15]} 51. Nc6 {[%clk 0:00:17]}  Rdd7 {[%clk 0:00:53]} 52. Rb5 {[%clk 0:00:18]}  Rbc7 {[%clk 0:00:50]} 53. Kc5 {[%clk 0:00:18]}  f5 {[%clk 0:00:44]} 54. Bxf7 {[%clk 0:00:17]}  Rxf7 {[%clk 0:00:45]} 55. e5 {[%clk 0:00:19]}  f4 {[%clk 0:00:46]} 56. gxf4 {[%clk 0:00:20]}  Rxf4 {[%clk 0:00:46]} 57. e6 {[%clk 0:00:19]}  Rxa4 {[%clk 0:00:38]} 58. Kd6 {[%clk 0:00:20]}  Rxc6+ {[%clk 0:00:06]} 59. Kxc6 {[%clk 0:00:22]}  Kg6 {[%clk 0:00:07]} 60. Re5 {[%clk 0:00:23]}  Ra8 {[%clk 0:00:05]} 61. Re1 {[%clk 0:00:20]}  Kf6 {[%clk 0:00:03]} 62. e7 {[%clk 0:00:14]}  Kf7 {[%clk 0:00:04]} 63. Re5 {[%clk 0:00:09]}  Ke8 {[%clk 0:00:04]} 64. Rxh5 {[%clk 0:00:03]}  Kxe7 {[%clk 0:00:05]} 65. Rg5 {[%clk 0:00:05]}  Kf6 {[%clk 0:00:06]} 66. Rg1 {[%clk 0:00:03]}  Ra5 {[%clk 0:00:06]} 67. Kd6 {[%clk 0:00:03]}  Rh5 {[%clk 0:00:03]} 68. Rf1+ {[%clk 0:00:04]}  Kg6 {[%clk 0:00:03]} 69. Rg1+ {[%clk 0:00:05]}  Kh7 {[%clk 0:00:03]} 70. Rg4 {[%clk 0:00:06]}  Kh6 {[%clk 0:00:03]} 71. Ke6 {[%clk 0:00:07]}  g5 {[%clk 0:00:04]} 72. hxg5+ {[%clk 0:00:07]}  Rxg5 {[%clk 0:00:06]} 73. Rxg5 {[%clk 0:00:09]}  Kxg5 {[%clk 0:00:06]} 1/2-1/2


[Site "Internet"]

[Event "Chessable Masters - Torneo preliminare"]
[White "Pichot, Alan"]
[Black "Wei, Yi"]
[WhiteFideId "110973"]
[BlackFideId "8603405"]
[WhiteElo "2549"]
[BlackElo "2716"]
[Result "0-1"]
[Round "6"]
[TimeControl "600+2"]
[Date "2023.03.13"]
[WhiteClock "0:00:11"]
[BlackClock "0:00:22"]

1. e4 {[%clk 0:09:58]}  e5 {[%clk 0:09:43]} 2. Nf3 {[%clk 0:09:59]}  Nc6 {[%clk 0:09:44]} 3. Bb5 {[%clk 0:09:59]}  a6 {[%clk 0:09:45]} 4. Ba4 {[%clk 0:10:00]}  Nf6 {[%clk 0:09:47]} 5. O-O {[%clk 0:10:00]}  Bc5 {[%clk 0:09:45]} 6. Nxe5 {[%clk 0:08:58]}  Nxe5 {[%clk 0:09:37]} 7. d4 {[%clk 0:08:59]}  b5 {[%clk 0:08:37]} 8. Bb3 {[%clk 0:08:59]}  Bxd4 {[%clk 0:08:37]} 9. Qxd4 {[%clk 0:09:00]}  d6 {[%clk 0:08:39]} 10. f4 {[%clk 0:09:01]}  Nc6 {[%clk 0:07:54]} 11. Qc3 {[%clk 0:08:08]}  Ne7 {[%clk 0:07:50]} 12. e5 {[%clk 0:07:53]}  Ne4 {[%clk 0:07:43]} 13. Qe1 {[%clk 0:07:51]}  Nc5 {[%clk 0:07:16]} 14. exd6 {[%clk 0:07:11]}  Qxd6 {[%clk 0:07:08]} 15. f5 {[%clk 0:07:08]}  Nxb3 {[%clk 0:05:43]} 16. cxb3 {[%clk 0:06:37]}  Bb7 {[%clk 0:05:36]} 17. Nc3 {[%clk 0:06:15]}  b4 {[%clk 0:04:26]} 18. Na4 {[%clk 0:05:56]}  O-O {[%clk 0:04:15]} 19. Bf4 {[%clk 0:05:33]}  Qd4+ {[%clk 0:02:52]} 20. Qf2 {[%clk 0:04:55]}  Nxf5 {[%clk 0:02:46]} 21. Bxc7 {[%clk 0:04:55]}  Rac8 {[%clk 0:02:17]} 22. Bb6 {[%clk 0:04:46]}  Qg4 {[%clk 0:02:13]} 23. Rad1 {[%clk 0:02:16]}  Nh4 {[%clk 0:00:55]} 24. Qg3 {[%clk 0:01:19]}  Qh5 {[%clk 0:00:56]} 25. Rd2 {[%clk 0:01:04]}  Rc6 {[%clk 0:00:57]} 26. Qf2 {[%clk 0:00:21]}  Rf6 {[%clk 0:00:46]} 27. Qe2 {[%clk 0:00:22]}  Rxf1+ {[%clk 0:00:28]} 28. Qxf1 {[%clk 0:00:23]}  Qg5 {[%clk 0:00:26]} 29. Rf2 {[%clk 0:00:19]}  Re8 {[%clk 0:00:27]} 30. Nc5 {[%clk 0:00:10]}  Bxg2 {[%clk 0:00:21]} 31. Rxg2 {[%clk 0:00:11]}  Nxg2 {[%clk 0:00:22]} 0-1


[Site "Internet"]

[Event "Chessable Masters - Torneo preliminare"]
[White "Terry, Renato"]
[Black "Dubov, Daniil"]
[WhiteFideId "3803457"]
[BlackFideId "24126055"]
[WhiteElo "2472"]
[BlackElo "2727"]
[Result "0-1"]
[Round "6"]
[TimeControl "600+2"]
[Date "2023.03.13"]
[WhiteClock "0:05:15"]
[BlackClock "0:05:04"]

1. Nf3 {[%clk 0:10:01]}  d5 {[%clk 0:09:57]} 2. e3 {[%clk 0:10:01]}  Nf6 {[%clk 0:09:55]} 3. d4 {[%clk 0:09:56]}  Bf5 {[%clk 0:09:30]} 4. Bd3 {[%clk 0:09:55]}  Bxd3 {[%clk 0:09:14]} 5. Qxd3 {[%clk 0:09:57]}  Nbd7 {[%clk 0:09:15]} 6. O-O {[%clk 0:09:54]}  e6 {[%clk 0:09:07]} 7. c4 {[%clk 0:09:55]}  Be7 {[%clk 0:09:02]} 8. b3 {[%clk 0:09:53]}  O-O {[%clk 0:09:00]} 9. Bb2 {[%clk 0:09:47]}  Ne4 {[%clk 0:08:53]} 10. Nc3 {[%clk 0:09:46]}  Ndf6 {[%clk 0:08:51]} 11. Nd2 {[%clk 0:09:35]}  Nxd2 {[%clk 0:08:23]} 12. Qxd2 {[%clk 0:09:35]}  c6 {[%clk 0:08:14]} 13. Rfd1 {[%clk 0:09:28]}  a6 {[%clk 0:08:03]} 14. Qc2 {[%clk 0:09:24]}  Qd7 {[%clk 0:08:01]} 15. Na4 {[%clk 0:09:02]}  Qd8 {[%clk 0:07:48]} 16. Rd3 {[%clk 0:08:37]}  Ne4 {[%clk 0:07:43]} 17. f3 {[%clk 0:08:17]}  Nf6 {[%clk 0:07:30]} 18. Rad1 {[%clk 0:07:38]}  Re8 {[%clk 0:07:23]} 19. Qc1 {[%clk 0:07:14]}  Rb8 {[%clk 0:06:58]} 20. Ba3 {[%clk 0:07:10]}  Bxa3 {[%clk 0:06:41]} 21. Qxa3 {[%clk 0:07:10]}  dxc4 {[%clk 0:06:22]} 22. bxc4 {[%clk 0:07:11]}  b5 {[%clk 0:06:23]} 23. Nc5 {[%clk 0:07:01]}  bxc4 {[%clk 0:06:12]} 24. Rc3 {[%clk 0:07:02]}  e5 {[%clk 0:06:10]} 25. Rxc4 {[%clk 0:07:00]}  exd4 {[%clk 0:05:52]} 26. Rcxd4 {[%clk 0:06:39]}  Qe7 {[%clk 0:05:52]} 27. e4 {[%clk 0:06:39]}  Rb5 {[%clk 0:05:39]} 28. Rc1 {[%clk 0:06:13]}  Nh5 {[%clk 0:05:19]} 29. Rd7 {[%clk 0:05:41]}  Qg5 {[%clk 0:05:11]} 30. Nd3 {[%clk 0:05:14]}  Qe3+ {[%clk 0:05:05]} 31. Kh1 {[%clk 0:05:15]}  Ng3+ {[%clk 0:05:04]} 0-1


[Site "Internet"]

[Event "Chessable Masters - Torneo preliminare"]
[White "Antipov, Mikhail Al."]
[Black "Keymer, Vincent"]
[WhiteFideId "4107012"]
[BlackFideId "12940690"]
[WhiteElo "2593"]
[BlackElo "2630"]
[Result "0-1"]
[Round "6"]
[TimeControl "600+2"]
[Date "2023.03.13"]
[WhiteClock "0:00:13"]
[BlackClock "0:00:14"]

1. e4 {[%clk 0:10:01]}  c6 {[%clk 0:10:01]} 2. d4 {[%clk 0:10:02]}  d5 {[%clk 0:10:02]} 3. exd5 {[%clk 0:10:04]}  cxd5 {[%clk 0:10:04]} 4. Bd3 {[%clk 0:10:05]}  Nf6 {[%clk 0:10:05]} 5. h3 {[%clk 0:10:06]}  Nc6 {[%clk 0:10:06]} 6. c3 {[%clk 0:10:07]}  e5 {[%clk 0:10:07]} 7. dxe5 {[%clk 0:10:07]}  Nxe5 {[%clk 0:10:09]} 8. Qe2 {[%clk 0:10:08]}  Qe7 {[%clk 0:10:03]} 9. Bc2 {[%clk 0:10:09]}  b6 {[%clk 0:10:00]} 10. Na3 {[%clk 0:10:06]}  Ba6 {[%clk 0:08:19]} 11. Nb5 {[%clk 0:10:06]}  O-O-O {[%clk 0:08:09]} 12. a4 {[%clk 0:10:05]}  Kb7 {[%clk 0:07:52]} 13. Bf4 {[%clk 0:07:53]}  Nc4 {[%clk 0:07:20]} 14. b4 {[%clk 0:05:52]}  Re8 {[%clk 0:03:57]} 15. Qxe7+ {[%clk 0:03:31]}  Bxe7 {[%clk 0:03:59]} 16. Ne2 {[%clk 0:03:32]}  Bxb5 {[%clk 0:03:31]} 17. axb5 {[%clk 0:03:34]}  Bd6 {[%clk 0:03:33]} 18. Bxd6 {[%clk 0:03:29]}  Nxd6 {[%clk 0:03:35]} 19. Bd3 {[%clk 0:03:18]}  Nd7 {[%clk 0:02:50]} 20. Kd2 {[%clk 0:02:27]}  Ne5 {[%clk 0:02:03]} 21. Nd4 {[%clk 0:02:26]}  Rc8 {[%clk 0:02:03]} 22. Rhe1 {[%clk 0:00:43]}  Rhe8 {[%clk 0:01:57]} 23. f3 {[%clk 0:00:18]}  h6 {[%clk 0:01:26]} 24. Kc2 {[%clk 0:00:15]}  Rc7 {[%clk 0:00:29]} 25. Bf1 {[%clk 0:00:04]}  g5 {[%clk 0:00:20]} 26. h4 {[%clk 0:00:04]}  f6 {[%clk 0:00:08]} 27. hxg5 {[%clk 0:00:04]}  hxg5 {[%clk 0:00:10]} 28. Red1 {[%clk 0:00:02]}  Rec8 {[%clk 0:00:10]} 29. Ra3 {[%clk 0:00:03]}  Nec4 {[%clk 0:00:09]} 30. Bxc4 {[%clk 0:00:03]}  Nxc4 {[%clk 0:00:11]} 31. Rda1 {[%clk 0:00:05]}  Nxa3+ {[%clk 0:00:12]} 32. Rxa3 {[%clk 0:00:07]}  Re7 {[%clk 0:00:06]} 33. Kd3 {[%clk 0:00:06]}  Rcc7 {[%clk 0:00:04]} 34. Nf5 {[%clk 0:00:05]}  Re6 {[%clk 0:00:05]} 35. Ra1 {[%clk 0:00:06]}  Re5 {[%clk 0:00:04]} 36. Nd4 {[%clk 0:00:05]}  f5 {[%clk 0:00:03]} 37. g3 {[%clk 0:00:03]}  f4 {[%clk 0:00:04]} 38. gxf4 {[%clk 0:00:05]}  gxf4 {[%clk 0:00:06]} 39. Nc6 {[%clk 0:00:06]}  Re3+ {[%clk 0:00:08]} 40. Kd4 {[%clk 0:00:06]}  Rxc6 {[%clk 0:00:06]} 41. bxc6+ {[%clk 0:00:08]}  Kxc6 {[%clk 0:00:08]} 42. Rxa7 {[%clk 0:00:09]}  Rxf3 {[%clk 0:00:09]} 43. Rf7 {[%clk 0:00:11]}  Kb5 {[%clk 0:00:05]} 44. Rf5 {[%clk 0:00:09]}  Ka4 {[%clk 0:00:06]} 45. Rxd5 {[%clk 0:00:06]}  Kb3 {[%clk 0:00:07]} 46. c4 {[%clk 0:00:04]}  Rc3 {[%clk 0:00:04]} 47. c5 {[%clk 0:00:03]}  b5 {[%clk 0:00:05]} 48. Rf5 {[%clk 0:00:04]}  Kxb4 {[%clk 0:00:05]} 49. Ke4 {[%clk 0:00:02]}  Rxc5 {[%clk 0:00:06]} 50. Rf8 {[%clk 0:00:04]}  Rc4+ {[%clk 0:00:07]} 51. Kd3 {[%clk 0:00:06]}  Kb3 {[%clk 0:00:07]} 52. Rf5 {[%clk 0:00:07]}  b4 {[%clk 0:00:09]} 53. Rf8 {[%clk 0:00:09]}  f3 {[%clk 0:00:10]} 54. Kd2 {[%clk 0:00:10]}  Rc3 {[%clk 0:00:11]} 55. Rf4 {[%clk 0:00:11]}  Ka3 {[%clk 0:00:12]} 56. Kd1 {[%clk 0:00:11]}  b3 {[%clk 0:00:12]} 57. Kd2 {[%clk 0:00:12]}  Kb2 {[%clk 0:00:13]} 58. Rf8 {[%clk 0:00:13]}  f2 {[%clk 0:00:14]} 0-1


[Site "Internet"]

[Event "Chessable Masters - Torneo preliminare"]
[White "Nguyen, Ngoc Truong Son"]
[Black "Chigaev, Maksim"]
[WhiteFideId "12401110"]
[BlackFideId "4108116"]
[WhiteElo "2585"]
[BlackElo "2568"]
[Result "0-1"]
[Round "6"]
[TimeControl "600+2"]
[Date "2023.03.13"]
[WhiteClock "0:00:18"]
[BlackClock "0:01:10"]

1. d4 {[%clk 0:10:01]}  Nf6 {[%clk 0:09:59]} 2. c4 {[%clk 0:10:02]}  g6 {[%clk 0:10:00]} 3. Nc3 {[%clk 0:10:02]}  Bg7 {[%clk 0:10:02]} 4. e4 {[%clk 0:10:02]}  d6 {[%clk 0:10:03]} 5. Nf3 {[%clk 0:10:02]}  O-O {[%clk 0:10:04]} 6. Be2 {[%clk 0:10:02]}  e5 {[%clk 0:10:05]} 7. d5 {[%clk 0:10:00]}  a5 {[%clk 0:10:05]} 8. Bg5 {[%clk 0:09:45]}  h6 {[%clk 0:10:05]} 9. Bh4 {[%clk 0:09:42]}  Na6 {[%clk 0:10:06]} 10. Nd2 {[%clk 0:09:39]}  Qe8 {[%clk 0:10:05]} 11. O-O {[%clk 0:09:21]}  Bd7 {[%clk 0:10:05]} 12. f3 {[%clk 0:09:16]}  h5 {[%clk 0:10:03]} 13. Bf2 {[%clk 0:08:58]}  Bh6 {[%clk 0:09:59]} 14. Nb3 {[%clk 0:08:13]}  b6 {[%clk 0:09:49]} 15. Nc1 {[%clk 0:08:00]}  Nh7 {[%clk 0:09:39]} 16. Nd3 {[%clk 0:07:46]}  f5 {[%clk 0:09:08]} 17. a3 {[%clk 0:07:42]}  a4 {[%clk 0:09:05]} 18. Nb5 {[%clk 0:07:35]}  fxe4 {[%clk 0:06:50]} 19. fxe4 {[%clk 0:07:34]}  Nf6 {[%clk 0:06:52]} 20. Nc3 {[%clk 0:07:06]}  Nc5 {[%clk 0:05:51]} 21. Nxc5 {[%clk 0:06:31]}  bxc5 {[%clk 0:05:53]} 22. Kh1 {[%clk 0:06:30]}  g5 {[%clk 0:05:05]} 23. Bg1 {[%clk 0:06:00]}  g4 {[%clk 0:04:56]} 24. Qc2 {[%clk 0:05:11]}  Qg6 {[%clk 0:04:51]} 25. Bd3 {[%clk 0:04:55]}  h4 {[%clk 0:04:43]} 26. Nb5 {[%clk 0:04:46]}  Nh5 {[%clk 0:04:27]} 27. g3 {[%clk 0:00:56]}  hxg3 {[%clk 0:02:47]} 28. Nxc7 {[%clk 0:00:54]}  Rf3 {[%clk 0:02:03]} 29. Nxa8 {[%clk 0:00:40]}  Nf4 {[%clk 0:02:03]} 30. hxg3 {[%clk 0:00:18]}  Rxg3 {[%clk 0:02:05]} 31. Bh2 {[%clk 0:00:16]}  Rh3 {[%clk 0:02:04]} 32. Nb6 {[%clk 0:00:12]}  g3 {[%clk 0:01:38]} 33. Rg1 {[%clk 0:00:13]}  Bg4 {[%clk 0:01:16]} 34. Rxg3 {[%clk 0:00:14]}  Rxg3 {[%clk 0:01:10]} 35. Bxg3 {[%clk 0:00:16]}  Bf3+ {[%clk 0:01:10]} 36. Kh2 {[%clk 0:00:17]}  Qh5+ {[%clk 0:01:10]} 37. Kg1 {[%clk 0:00:18]}  Qh1+ {[%clk 0:01:12]} 38. Kf2 {[%clk 0:00:18]}  Nh3# {[%clk 0:01:10]} 0-1


[Site "Internet"]

[Event "Chessable Masters - Torneo preliminare"]
[White "Pantsulaia, Levan"]
[Black "Van Foreest, Jorden"]
[WhiteFideId "13602071"]
[BlackFideId "1039784"]
[WhiteElo "2533"]
[BlackElo "2682"]
[Result "1-0"]
[Round "6"]
[TimeControl "600+2"]
[Date "2023.03.13"]
[WhiteClock "0:00:19"]
[BlackClock "0:00:04"]

1. Nf3 {[%clk 0:09:59]}  g6 {[%clk 0:09:55]} 2. c4 {[%clk 0:09:58]}  Bg7 {[%clk 0:09:55]} 3. Nc3 {[%clk 0:10:00]}  Nf6 {[%clk 0:09:47]} 4. g3 {[%clk 0:09:54]}  O-O {[%clk 0:09:45]} 5. Bg2 {[%clk 0:09:56]}  d6 {[%clk 0:09:41]} 6. O-O {[%clk 0:09:56]}  e5 {[%clk 0:09:37]} 7. d3 {[%clk 0:09:57]}  Nc6 {[%clk 0:09:36]} 8. a3 {[%clk 0:09:53]}  Re8 {[%clk 0:09:34]} 9. Bg5 {[%clk 0:09:53]}  h6 {[%clk 0:09:31]} 10. Bxf6 {[%clk 0:09:54]}  Bxf6 {[%clk 0:09:33]} 11. Nd2 {[%clk 0:09:53]}  a5 {[%clk 0:09:26]} 12. c5 {[%clk 0:09:32]}  dxc5 {[%clk 0:09:03]} 13. Bxc6 {[%clk 0:09:31]}  bxc6 {[%clk 0:09:03]} 14. Qa4 {[%clk 0:09:32]}  h5 {[%clk 0:08:38]} 15. Rfc1 {[%clk 0:08:50]}  h4 {[%clk 0:08:36]} 16. Nce4 {[%clk 0:08:48]}  hxg3 {[%clk 0:08:12]} 17. Qxc6 {[%clk 0:08:12]}  gxf2+ {[%clk 0:08:12]} 18. Kh1 {[%clk 0:08:06]}  Bh4 {[%clk 0:05:25]} 19. Qxa8 {[%clk 0:08:02]}  f5 {[%clk 0:05:27]} 20. Nxc5 {[%clk 0:06:40]}  e4 {[%clk 0:05:26]} 21. Qc6 {[%clk 0:06:15]}  Kh7 {[%clk 0:05:24]} 22. Nf1 {[%clk 0:04:50]}  exd3 {[%clk 0:05:17]} 23. Nxd3 {[%clk 0:04:30]}  Qg5 {[%clk 0:05:10]} 24. Ng3 {[%clk 0:03:46]}  Bxg3 {[%clk 0:04:41]} 25. hxg3 {[%clk 0:03:47]}  Rxe2 {[%clk 0:04:42]} 26. Kg2 {[%clk 0:02:29]}  f1=Q+ {[%clk 0:03:31]} 27. Kxf1 {[%clk 0:02:29]}  Re4 {[%clk 0:02:07]} 28. Qxc7+ {[%clk 0:02:10]}  Kh6 {[%clk 0:02:09]} 29. Qxc8 {[%clk 0:01:36]}  Qxg3 {[%clk 0:02:09]} 30. Qh8+ {[%clk 0:01:25]}  Kg5 {[%clk 0:02:10]} 31. Qd8+ {[%clk 0:01:17]}  Kh6 {[%clk 0:02:11]} 32. Nf2 {[%clk 0:01:17]}  Rf4 {[%clk 0:01:49]} 33. Rc2 {[%clk 0:01:05]}  Qh3+ {[%clk 0:01:31]} 34. Ke1 {[%clk 0:01:06]}  Qg3 {[%clk 0:01:28]} 35. Qh8+ {[%clk 0:00:39]}  Kg5 {[%clk 0:01:28]} 36. Qh1 {[%clk 0:00:41]}  Rh4 {[%clk 0:00:29]} 37. Qf1 {[%clk 0:00:32]}  f4 {[%clk 0:00:17]} 38. Rd1 {[%clk 0:00:30]}  f3 {[%clk 0:00:16]} 39. Rd3 {[%clk 0:00:21]}  Kh6 {[%clk 0:00:08]} 40. Kd1 {[%clk 0:00:21]}  Rh2 {[%clk 0:00:04]} 41. Ng4+ {[%clk 0:00:19]} 1-0


[Site "Internet"]

[Event "Chessable Masters - Torneo preliminare"]
[White "Iturrizaga Bonelli, Eduardo"]
[Black "Smirnov, Pavel"]
[WhiteFideId "3901211"]
[BlackFideId "4123425"]
[WhiteElo "2654"]
[BlackElo "2470"]
[Result "1-0"]
[Round "6"]
[TimeControl "600+2"]
[Date "2023.03.13"]
[WhiteClock "0:00:09"]
[BlackClock "0:00:18"]

1. c4 {[%clk 0:09:59]}  e6 {[%clk 0:10:00]} 2. Nf3 {[%clk 0:09:59]}  d5 {[%clk 0:10:00]} 3. e3 {[%clk 0:10:00]}  Nf6 {[%clk 0:10:01]} 4. Nc3 {[%clk 0:09:58]}  b6 {[%clk 0:09:55]} 5. b3 {[%clk 0:09:58]}  Bb7 {[%clk 0:09:55]} 6. Bb2 {[%clk 0:09:59]}  Nbd7 {[%clk 0:09:49]} 7. cxd5 {[%clk 0:09:57]}  exd5 {[%clk 0:09:49]} 8. d4 {[%clk 0:09:53]}  Bd6 {[%clk 0:09:46]} 9. g3 {[%clk 0:09:54]}  a6 {[%clk 0:09:40]} 10. Bg2 {[%clk 0:09:55]}  O-O {[%clk 0:09:41]} 11. O-O {[%clk 0:09:54]}  Qe7 {[%clk 0:09:41]} 12. a3 {[%clk 0:09:44]}  Ne4 {[%clk 0:09:32]} 13. Ne2 {[%clk 0:09:39]}  a5 {[%clk 0:09:30]} 14. Nf4 {[%clk 0:09:36]}  c6 {[%clk 0:09:23]} 15. Nd3 {[%clk 0:09:26]}  Rfe8 {[%clk 0:09:12]} 16. Nfe5 {[%clk 0:08:50]}  f6 {[%clk 0:09:10]} 17. Nf3 {[%clk 0:08:45]}  a4 {[%clk 0:09:00]} 18. bxa4 {[%clk 0:07:22]}  Ra5 {[%clk 0:08:57]} 19. Nh4 {[%clk 0:04:59]}  g6 {[%clk 0:08:51]} 20. Nb4 {[%clk 0:03:24]}  Rea8 {[%clk 0:08:27]} 21. Rc1 {[%clk 0:02:54]}  Bxb4 {[%clk 0:08:27]} 22. axb4 {[%clk 0:02:56]}  Rxa4 {[%clk 0:08:29]} 23. b5 {[%clk 0:02:50]}  c5 {[%clk 0:08:27]} 24. dxc5 {[%clk 0:02:49]}  bxc5 {[%clk 0:08:25]} 25. Bc3 {[%clk 0:02:01]}  Ra3 {[%clk 0:07:40]} 26. Bb2 {[%clk 0:01:55]}  R3a4 {[%clk 0:07:22]} 27. Bc3 {[%clk 0:01:56]}  Nb6 {[%clk 0:06:54]} 28. Nf3 {[%clk 0:01:26]}  Ra3 {[%clk 0:05:39]} 29. Bb2 {[%clk 0:01:24]}  Ra2 {[%clk 0:05:31]} 30. Rc2 {[%clk 0:01:08]}  Nc4 {[%clk 0:05:07]} 31. Bc1 {[%clk 0:01:08]}  Ra1 {[%clk 0:05:06]} 32. h4 {[%clk 0:01:05]}  Qe8 {[%clk 0:04:55]} 33. h5 {[%clk 0:01:03]}  g5 {[%clk 0:04:54]} 34. Nh2 {[%clk 0:00:58]}  f5 {[%clk 0:04:44]} 35. g4 {[%clk 0:00:41]}  f4 {[%clk 0:03:50]} 36. exf4 {[%clk 0:00:40]}  gxf4 {[%clk 0:03:51]} 37. Re1 {[%clk 0:00:19]}  Qf7 {[%clk 0:03:06]} 38. g5 {[%clk 0:00:12]}  Nxg5 {[%clk 0:02:12]} 39. Qg4 {[%clk 0:00:12]}  h6 {[%clk 0:02:12]} 40. Nf3 {[%clk 0:00:08]}  Re8 {[%clk 0:01:28]} 41. Rxe8+ {[%clk 0:00:08]}  Qxe8 {[%clk 0:01:28]} 42. Nxg5 {[%clk 0:00:10]}  hxg5 {[%clk 0:01:29]} 43. Qxg5+ {[%clk 0:00:11]}  Kh7 {[%clk 0:01:20]} 44. Qf5+ {[%clk 0:00:13]}  Kg8 {[%clk 0:01:13]} 45. Bxd5+ {[%clk 0:00:13]}  Bxd5 {[%clk 0:01:10]} 46. Qxd5+ {[%clk 0:00:15]}  Kh7 {[%clk 0:01:10]} 47. Qxc4 {[%clk 0:00:14]}  Qxh5 {[%clk 0:01:03]} 48. Qe4+ {[%clk 0:00:14]}  Kg8 {[%clk 0:00:58]} 49. Qe6+ {[%clk 0:00:12]}  Kh7 {[%clk 0:00:59]} 50. Qd7+ {[%clk 0:00:11]}  Kg8 {[%clk 0:00:58]} 51. Qc8+ {[%clk 0:00:11]}  Kh7 {[%clk 0:00:57]} 52. Qc7+ {[%clk 0:00:11]}  Kg8 {[%clk 0:00:57]} 53. Qd8+ {[%clk 0:00:10]}  Kh7 {[%clk 0:00:56]} 54. Qd7+ {[%clk 0:00:11]}  Kg8 {[%clk 0:00:57]} 55. Qe6+ {[%clk 0:00:11]}  Kh7 {[%clk 0:00:55]} 56. Qe4+ {[%clk 0:00:12]}  Kg8 {[%clk 0:00:55]} 57. Qc4+ {[%clk 0:00:12]}  Kh7 {[%clk 0:00:54]} 58. f3 {[%clk 0:00:07]}  Qe5 {[%clk 0:00:17]} 59. Qf7+ {[%clk 0:00:08]}  Kh6 {[%clk 0:00:17]} 60. Rh2+ {[%clk 0:00:08]}  Kg5 {[%clk 0:00:18]} 61. Rh5# {[%clk 0:00:09]} 1-0


[Site "Internet"]